bitfinex/quotes_ETHUSD_20250413
["timestamp","ask_amount","ask_price","bid_price","bid_amount"]
[1744572248882,19.27124,1621.3,1621.0,6.16897]
[1744572248883,13.10303,1621.3,1621.0,6.16897]
[1744572249082,19.27112,1621.3,1620.9,6.16913]
[1744572249604,21.277482,1621.3,1620.9,6.16913]
[1744572250506,1.2,1621.2,1620.9,6.16913]
[1744572250905,6.16892,1621.1,1620.8,6.14]
[1744572251207,12.33781,1621.1,1620.8,6.14]
[1744572252807,6.16918,1621.0,1620.8,6.14]
[1744572253009,12.33841,1621.0,1620.8,6.14]
[1744572253478,6.16918,1621.0,1620.8,6.14]
[1744572254315,6.863588,1621.0,1620.8,6.14]
[1744572254505,6.16941,1620.9,1620.8,6.14]
[1744572254873,6.16941,1620.9,1620.6,6.14]
[1744572255078,6.16987,1620.8,1620.6,6.14]
[1744572256013,6.17052,1620.7,1620.5,6.14]
[1744572256186,6.17055,1620.6,1620.5,6.14]
[1744572256391,6.17104,1620.5,1620.2,6.14]
[1744572256611,6.17104,1620.5,1620.2,12.31207]
[1744572256787,6.17104,1620.5,1620.3,0.19280843]
[1744572256988,0.7639,1620.4,1620.3,0.19280843]
[1744572257192,6.93521,1620.4,1620.3,0.19280843]
[1744572257511,6.93526,1620.4,1620.0,12.37452191]
[1744572257707,13.10677,1620.4,1620.1,6.17242]
[1744572257930,13.10677,1620.4,1620.0,12.3128]
[1744572258101,13.10677,1620.4,1620.0,12.37452188]
[1744572258297,0.7639,1620.4,1620.1,0.1928302]
[1744572258616,6.935,1620.5,1620.2,6.17186]
[1744572258909,13.1061,1620.5,1620.2,6.17186]
[1744572259109,13.86985,1620.8,1620.5,6.17087]
[1744572259311,7.6999,1620.8,1620.5,6.17075]
[1744572259511,6.933,1621.0,1620.7,6.17013]
[1744572259683,0.7639,1621.0,1620.6,0.5765]
[1744572259878,6.93301,1621.0,1620.6,6.17034]
[1744572260686,6.16957,1620.9,1620.6,6.23203862]
[1744572261316,6.93301,1621.0,1620.7,6.16999]
[1744572262513,6.936,1621.1,1620.8,0.63819793]
[1744572262682,3.0,1621.3,1620.8,0.5765]
[1744572262879,6.16917,1621.0,1620.7,12.31012]
[1744572263117,6.16944,1620.9,1620.7,6.14]
[1744572263320,6.93307,1621.0,1620.6,12.94857633]
[1744572263501,6.93307,1621.0,1620.6,14.30514146]
[1744572263705,6.93307,1621.0,1620.7,6.17015]
[1744572264890,6.16828,1621.2,1620.8,6.16975]
[1744572265114,16.14695,1621.3,1620.9,6.16924]
[1744572265334,6.16829,1621.2,1620.9,6.16924]
[1744572265937,6.16916,1621.0,1620.7,12.31002]
[1744572266226,6.16916,1621.0,1620.7,6.14]
[1744572266733,12.33851,1621.0,1620.7,6.14]
[1744572268325,6.16916,1621.0,1620.7,6.14]
[1744572268615,6.16945,1620.9,1620.7,6.14]
[1744572268819,12.33906,1620.9,1620.7,6.14]
[1744572269022,6.16979,1620.8,1620.5,6.14]
[1744572269190,6.17019,1620.7,1620.5,6.14]
[1744572270622,6.16979,1620.8,1620.5,12.31092]
[1744572270919,12.33979,1620.8,1620.5,6.14]
[1744572271118,6.17017,1620.7,1620.5,6.14]
[1744572271494,6.16979,1620.8,1620.5,12.31089]
[1744572271697,6.16991,1620.8,1620.5,12.31089]
[1744572272624,6.16991,1620.8,1620.2,6.14]
[1744572272625,0.8109,1620.7,1620.2,6.14]
[1744572272832,0.8109,1620.5,1619.9,6.74959]
[1744572273122,6.17201,1620.3,1619.9,6.74959]
[1744572273287,12.34401,1620.3,1619.9,6.74959]
[1744572273489,12.34401,1620.3,1620.0,0.19284208]
[1744572274024,12.34401,1620.3,1619.9,12.92267]
[1744572274326,13.10475,1620.6,1620.3,6.17165]
[1744572274513,6.98112,1620.7,1620.4,6.17125]
[1744572275445,6.17082,1620.6,1620.3,0.5765]
[1744572276003,6.17082,1620.6,1620.3,6.74815]
[1744572276687,12.3417,1620.6,1620.3,0.5765]
[1744572276894,6.17082,1620.6,1620.3,6.80975973]
[1744572277425,6.17082,1620.6,1620.3,6.74805]
[1744572277823,6.17082,1620.6,1620.2,6.17194]
[1744572278024,6.17135,1620.4,1620.1,6.74878]
[1744572278206,6.17135,1620.4,1620.1,12.92109]
[1744572278401,6.17135,1620.4,1620.2,0.19282262]
[1744572278809,12.34287,1620.4,1620.2,0.19282262]
[1744572279118,6.17135,1620.4,1620.1,6.74878]
[1744572279928,0.7999,1620.3,1620.0,6.14]
[1744572280231,6.17228,1620.2,1620.0,6.14]
[1744572281440,0.7999,1620.3,1620.0,6.14]
[1744572281615,6.98201,1620.5,1620.2,6.17204]
[1744572281796,0.811,1620.5,1620.3,6.17164]
[1744572282146,15.34149,1620.6,1620.3,6.17164]
[1744572282347,6.17096,1620.5,1620.3,6.14]
[1744572282520,6.17131,1620.4,1620.3,6.14]
[1744572286423,6.17096,1620.5,1620.3,6.14]
[1744572286815,12.34209,1620.5,1620.3,6.14]
[1744572287209,12.34209,1620.5,1620.1,12.34458]
[1744572287413,12.34209,1620.5,1620.1,12.40629771]
[1744572288258,14.0378239,1620.5,1620.1,12.40629771]
[1744572288824,6.98025,1620.4,1620.0,16.6434427]
[1744572289049,6.17185,1620.3,1620.0,12.31281]
[1744572289652,0.8089,1620.4,1619.9,12.8897]
[1744572289653,6.17228,1620.2,1619.9,12.8897]
[1744572289828,6.17228,1620.2,1620.0,0.19284832]
[1744572290025,6.98029,1620.4,1620.0,0.19284832]
[1744572290229,6.98029,1620.4,1620.0,4.58520786]
[1744572290480,6.98029,1620.4,1620.0,4.39235954]
[1744572290962,6.98029,1620.4,1620.1,0.19283152]
[1744572291314,6.98029,1620.4,1620.1,6.17229]
[1744572292759,12.34211,1620.5,1620.1,12.34461]
[1744572292965,6.96754,1620.8,1620.5,6.17077]
[1744572293258,67.342476,1620.9,1620.5,6.17077]
[1744572293457,6.16948,1620.9,1620.6,6.17038]
[1744572293611,6.16948,1620.9,1620.5,12.34168]
[1744572293815,6.16948,1620.9,1620.6,6.17048]
[1744572294015,12.33908,1620.9,1620.6,6.17048]
[1744572294865,0.7975,1621.1,1620.7,6.16988]
[1744572294866,6.96633,1621.1,1620.7,6.16988]
[1744572295358,6.96633,1621.1,1620.7,12.33993]
[1744572297654,6.16918,1621.0,1620.6,18.4515957]
[1744572297962,0.7784,1620.9,1620.6,6.14]
[1744572298190,6.17014,1620.8,1620.6,6.14]
[1744572298371,6.17017,1620.7,1620.6,6.14]
[1744572298568,6.17014,1620.8,1620.6,6.14]
[1744572298777,6.94782,1620.9,1620.6,12.31039]
[1744572300196,0.7784,1620.9,1620.6,18.54249016]
[1744572300362,6.16907,1621.0,1620.7,6.17016]
[1744572300687,6.16944,1620.9,1620.6,14.22228902]
[1744572301584,6.16944,1620.9,1620.7,0.19276586]
[1744572302150,6.16944,1620.9,1620.6,14.22228902]
[1744572302398,6.16944,1620.9,1620.6,8.05189902]
[1744572302399,12.33915,1620.9,1620.6,8.05189902]
[1744572302557,12.33915,1620.9,1620.6,6.14]
[1744572303296,3.7784,1621.1,1620.6,6.14]
[1744572303297,6.16997,1620.8,1620.6,6.14]
[1744572303489,6.94837,1620.8,1620.2,10.5025527]
[1744572303814,6.17095,1620.5,1620.3,0.19280297]
[1744572304115,12.34164,1620.6,1620.3,0.19280297]
[1744572304318,12.34164,1620.6,1620.2,12.34382]
[1744572305076,13.87832,1620.8,1620.4,6.17119]
[1744572305275,13.87832,1620.8,1620.4,12.34237]
[1744572305938,13.87832,1620.8,1620.4,12.40407691]
[1744572306442,7.7084,1620.8,1620.5,6.17071]
[1744572306735,13.11686,1621.0,1620.6,6.17043]
[1744572306909,6.94754,1621.0,1620.6,0.81573956]
[1744572307225,6.94754,1621.0,1620.7,6.36271495]
[1744572307605,0.7784,1621.0,1620.7,12.59441006]
[1744572308030,0.7784,1621.0,1620.7,12.40162511]
[1744572309028,19.2675,1621.1,1620.7,12.40162511]
[1744572309228,0.7784,1621.2,1620.9,6.16921]
[1744572309431,15.336,1621.3,1621.0,6.16901]
[1744572309635,13.89597,1621.4,1621.0,12.33802]
[1744572309931,0.02,1621.4,1621.3,6.16788]
[1744572310137,0.02,1621.4,1621.3,13.541478]
[1744572310628,0.02,1621.4,1621.3,18.06482312]
[1744572311137,0.02,1621.4,1621.3,13.73419042]
[1744572312247,0.02,1621.4,1621.3,13.541478]
[1744572313043,0.02,1621.4,1621.3,7.373598]
[1744572313262,0.02,1621.4,1621.3,6.14]
[1744572314363,6.1875,1621.4,1621.3,6.14]
[1744572315073,0.02,1621.4,1621.3,6.14]
[1744572317586,0.02,1621.4,1621.3,12.88438]
[1744572317759,0.02,1621.4,1621.3,19.12642821]
[1744572318283,0.02,1621.4,1621.3,19.31908492]
[1744572319498,0.7837,1621.4,1621.2,6.14]
[1744572319698,6.16859,1621.2,1621.0,6.14]
[1744572319851,0.7837,1621.4,1621.0,6.14]
[1744572319852,6.16795,1621.3,1621.0,6.14]
[1744572320055,6.95122,1621.4,1621.0,12.30884]
[1744572320296,0.7837,1621.4,1621.1,6.16848]
[1744572320483,0.02,1621.4,1621.2,6.16823]
[1744572320681,0.02,1621.4,1621.1,12.30848]
[1744572320682,6.18776,1621.4,1621.1,6.14]
[1744572321068,6.16803,1621.3,1621.1,6.14]
[1744572321277,6.91833,1621.3,1621.1,6.14]
[1744572321482,6.16827,1621.2,1621.1,6.14]
[1744572321883,6.91833,1621.3,1621.1,6.14]
[1744572322254,13.08641,1621.3,1621.1,6.14]
[1744572322487,6.16827,1621.2,1621.1,6.14]
[1744572323206,6.91833,1621.3,1621.1,6.14]
[1744572327007,13.0864,1621.3,1621.1,6.14]
[1744572327709,6.91833,1621.3,1621.1,6.14]
[1744572328603,13.08641,1621.3,1621.1,6.14]
[1744572329598,6.18751,1621.4,1621.1,6.14]
[1744572329788,6.18751,1621.4,1621.1,12.30848]
[1744572329957,6.18751,1621.4,1621.1,12.37015998]
[1744572330157,0.02,1621.4,1621.3,6.16788]
[1744572330571,0.02,1621.4,1621.3,12.88438]
[1744572330776,0.02,1621.4,1621.3,13.07705598]
[1744572332599,0.02,1621.4,1621.3,13.62705598]
[1744572333504,0.02,1621.4,1621.3,16.62705598]
[1744572333702,0.02,1621.4,1621.3,19.55655195]
[1744572334633,0.02,1621.4,1621.3,19.00655195]
[1744572335842,0.02,1621.4,1621.3,9.26217195]
[1744572336129,0.02,1621.4,1621.3,6.33267598]
[1744572336330,0.02,1621.4,1621.3,12.56222742]
[1744572336641,0.02,1621.4,1621.3,6.33267598]
[1744572337398,6.9742,1621.4,1621.3,0.19267598]
[1744572337721,6.168,1621.3,1621.1,6.14]
[1744572342047,6.95497,1621.2,1621.1,6.14]
[1744572342401,6.16903,1621.0,1620.8,6.14]
[1744572343648,6.16903,1621.0,1620.6,11.53914387]
[1744572343649,0.8067,1621.4,1621.2,6.16804]
[1744572344006,0.02,1621.4,1621.2,12.33617]
[1744572344250,0.02,1621.4,1621.2,12.39784576]
[1744572344759,0.02,1621.4,1621.2,6.22971576]
[1744572346061,0.02,1621.4,1621.2,12.39786576]
[1744572346522,0.02,1621.4,1621.3,6.16788]
[1744572348739,0.8089,1621.3,1621.0,12.30893]
[1744572348943,6.97697,1621.3,1621.1,0.19272197]
[1744572349139,13.14507,1621.3,1621.1,0.19272197]
[1744572349338,6.97697,1621.3,1621.1,0.19272197]
[1744572349534,6.97697,1621.3,1621.0,20.383254]
[1744572349771,6.97697,1621.3,1621.0,14.214344]
[1744572350172,6.97697,1621.3,1621.0,20.383214]
[1744572350381,6.97697,1621.3,1621.1,0.19272245]
[1744572350744,6.97697,1621.3,1621.0,14.214344]
[1744572351257,6.97697,1621.3,1621.0,12.30887]
[1744572351635,0.8089,1621.3,1621.1,6.16857]
[1744572352858,6.97681,1621.3,1621.0,12.30887]
[1744572353162,13.14493,1621.3,1621.0,12.30887]
[1744572353375,6.97681,1621.3,1621.0,12.30887]
[1744572354489,13.14492,1621.3,1621.0,12.30887]
[1744572354885,6.97681,1621.3,1621.0,12.30887]
[1744572355049,0.8089,1621.3,1621.0,12.30887]
[1744572355249,6.97685,1621.3,1621.0,12.30887]
[1744572355556,6.97685,1621.3,1621.0,13.55761909]
[1744572355557,0.8089,1621.3,1621.0,13.55761909]
[1744572355757,0.8089,1621.3,1621.0,13.49593525]
[1744572356082,0.8089,1621.3,1621.1,6.16858]
[1744572357280,0.8089,1621.3,1621.0,19.66480525]
[1744572357979,6.941,1621.4,1621.1,12.33709]
[1744572358386,6.941,1621.4,1621.1,6.16852]
[1744572358547,6.941,1621.4,1621.1,12.33706]
[1744572358881,19.27629,1621.4,1621.1,6.1685]
[1744572360474,13.10858,1621.4,1621.1,6.1685]
[1744572360882,19.27625,1621.4,1621.1,6.1685]
[1744572361092,13.10858,1621.4,1621.1,6.1685]
[1744572361885,6.941,1621.4,1621.0,14.07249525]
[1744572362087,6.16865,1621.1,1621.0,6.14]
[1744572362587,6.16865,1621.1,1621.0,6.33273652]
[1744572362950,0.7679,1621.2,1621.0,12.50154652]
[1744572363154,7.7089,1621.4,1621.1,6.36101652]
[1744572363792,7.7089,1621.4,1621.1,6.16828]
[1744572364469,0.7,1621.3,1621.1,6.16828]
[1744572365258,0.7,1621.3,1621.1,12.33681]
[1744572366501,0.7,1621.3,1621.1,6.16828]
[1744572367013,0.7,1621.3,1621.2,12.30827]
[1744572367298,0.02,1621.4,1621.3,6.74438]
[1744572367594,0.02,1621.4,1621.3,6.36056071]
[1744572367806,0.02,1621.4,1621.3,0.19268071]
[1744572368094,0.02,1621.4,1621.3,6.42223662]
[1744572368280,0.02,1621.4,1621.3,8.29526928]
[1744572368873,0.02,1621.4,1621.3,13.13562276]
[1744572369202,0.02,1621.4,1621.3,19.27562276]
[1744572369401,0.02,1621.4,1621.3,19.82562276]
[1744572370172,0.02,1621.4,1621.3,19.27562276]
[1744572372906,0.02,1621.4,1621.3,6.33268071]
[1744572373108,0.02,1621.4,1621.3,0.19268071]
[1744572373716,6.1875,1621.4,1621.2,6.14]
[1744572373871,6.1875,1621.4,1621.1,6.14]
[1744572374204,0.7825,1621.3,1621.1,6.14]
[1744572374409,0.02,1621.4,1621.1,12.30852]
[1744572375010,0.02,1621.4,1621.2,0.19270876]
[1744572375512,6.18754,1621.4,1621.1,12.30852]
[1744572376514,6.18754,1621.4,1621.1,18.47705]
[1744572376806,6.18754,1621.4,1621.1,12.30852]
[1744572377323,7.501265,1621.4,1621.2,0.19271066]
[1744572377622,7.501265,1621.4,1621.1,12.30852]
[1744572377823,0.02,1621.4,1621.1,6.20168091]
[1744572377990,0.02,1621.4,1621.3,10.49340939]
[1744572378324,0.02,1621.4,1621.3,19.88775205]
[1744572378505,0.02,1621.4,1621.3,15.50055814]
[1744572380828,0.02,1621.4,1621.3,12.50055814]
[1744572381784,0.02,1621.4,1621.3,0.19267814]
[1744572382117,6.80623,1621.4,1621.3,0.19267814]
[1744572382282,6.80623,1621.4,1621.1,12.30859]
[1744572382719,6.1875,1621.4,1621.1,12.30859]
[1744572382904,0.7698,1620.9,1620.6,6.14]
[1744572383108,6.93956,1620.9,1620.6,6.14]
[1744572383301,0.7698,1620.9,1620.6,12.31046]
[1744572383501,0.7698,1620.9,1620.6,14.19038611]
[1744572383703,6.93942,1620.9,1620.6,8.01992611]
[1744572383914,6.93942,1620.9,1620.6,6.14]
[1744572384423,0.7698,1621.1,1620.6,11.04202939]
[1744572384607,0.7698,1621.3,1620.9,6.16939]
[1744572384924,6.16829,1621.2,1620.8,6.16974]
[1744572385125,6.16829,1621.2,1620.9,0.616974]
[1744572385424,6.16829,1621.2,1620.8,6.16955]
[1744572385630,6.16907,1621.0,1620.7,6.17015]
[1744572385929,0.7698,1621.0,1620.8,0.19274767]
[1744572386426,0.7698,1621.0,1620.7,6.23162349]
[1744572386927,0.7698,1621.0,1620.8,0.19275138]
[1744572387427,0.7698,1621.0,1620.7,6.23162349]
[1744572387601,0.7698,1621.0,1620.7,7.95898878]
[1744572387801,0.7698,1621.0,1620.8,6.16976]
[1744572388000,6.93886,1621.0,1620.6,6.14]
[1744572388203,6.16968,1620.9,1620.6,6.14]
[1744572388889,6.16981,1620.8,1620.6,6.14]
[1744572389094,6.16968,1620.9,1620.5,18.54320122]
[1744572389292,6.93889,1621.0,1620.6,6.17051]
[1744572389523,13.87872,1621.2,1620.8,6.16971]
[1744572389828,7.7104,1621.2,1620.7,0.19275812]
[1744572390031,6.16921,1621.0,1620.7,0.19275812]
[1744572390235,6.16921,1621.0,1620.6,6.17051]
[1744572390728,12.33848,1621.0,1620.6,6.17051]
[1744572391035,0.7974,1621.2,1620.9,6.16936]
[1744572392112,6.905,1621.3,1621.0,6.23069845]
[1744572392328,6.99914,1621.4,1621.0,6.23069845]
[1744572392329,0.02,1621.4,1621.2,6.16794]
[1744572392543,0.02,1621.4,1621.3,6.16788]
[1744572392749,0.02,1621.4,1621.3,13.43438]
[1744572392913,0.02,1621.4,1621.3,16.01984555]
[1744572393120,0.02,1621.4,1621.3,9.30196555]
[1744572393446,0.02,1621.4,1621.3,15.46984555]
[1744572394937,0.02,1621.4,1621.3,14.89334555]
[1744572395936,0.02,1621.4,1621.3,14.70066494]
[1744572396134,0.02,1621.4,1621.3,8.53278494]
[1744572397032,0.02,1621.4,1621.3,19.02619433]
[1744572397233,0.02,1621.4,1621.3,14.70066494]
[1744572397438,0.02,1621.4,1621.3,14.89334306]
[1744572400816,0.02,1621.4,1621.3,20.34537245]
[1744572401241,0.8116,1622.1,1621.5,0.5765]
[1744572401407,0.8116,1622.3,1622.0,6.16503]
[1744572401615,6.924,1622.4,1622.1,6.16458]
[1744572401829,0.02,1622.4,1622.3,6.16408]
[1744572402251,0.02,1622.4,1622.3,12.36571281]
[1744572402421,0.02,1622.4,1622.3,12.36570645]
[1744572402620,0.02,1622.4,1622.3,14.64728358]
[1744572403517,0.02,1622.4,1622.3,6.14]
[1744572404959,0.02,1622.4,1622.1,6.14]
[1744572405110,6.97581,1622.3,1622.1,6.14]
[1744572405316,6.16506,1622.1,1621.9,6.14]
[1744572405540,0.616506,1622.0,1621.9,6.14]
[1744572405817,6.16507,1622.1,1621.9,6.14]
[1744572406018,6.16522,1622.0,1621.9,6.14]
[1744572406219,6.97682,1622.0,1621.9,6.14]
[1744572406522,6.16563,1621.9,1621.7,6.14]
[1744572408555,6.16598,1621.8,1621.7,6.14]
[1744572410286,6.97834,1621.6,1621.5,6.14]
[1744572410588,6.97834,1621.6,1621.1,6.16861]
[1744572410589,6.16735,1621.5,1621.3,6.14]
[1744572411577,12.33473,1621.5,1621.3,6.14]
[1744572411946,6.16735,1621.5,1621.3,6.14]
[1744572413882,13.85914,1621.8,1621.3,19.71256351]
[1744572414100,6.16687,1621.6,1621.3,12.30773]
[1744572414607,6.16636,1621.7,1621.3,12.30773]
[1744572414816,12.33292,1621.7,1621.4,6.1675]
[1744572415454,6.16636,1621.7,1621.4,6.1675]
[1744572416495,12.33291,1621.7,1621.4,6.1675]
[1744572416793,6.16677,1621.6,1621.3,12.30773]
[1744572418598,13.85909,1621.8,1621.3,6.14]
[1744572418801,6.1675,1621.4,1621.3,6.14]
[1744572419862,6.1675,1621.4,1620.8,6.74627]
[1744572419863,6.16873,1621.1,1620.8,6.74627]
[1744572420062,13.1562,1621.2,1620.8,19.05589]
[1744572420265,13.1562,1621.2,1620.8,20.961479]
[1744572420703,6.16893,1621.1,1620.8,8.622089]
[1744572420883,6.16893,1621.1,1620.8,14.791749]
[1744572421086,13.06155,1621.4,1620.8,8.622089]
[1744572421289,6.894,1621.4,1621.2,6.16811]
[1744572421486,6.98185,1621.5,1621.2,12.30811]
[1744572421703,3.0,1621.6,1621.4,6.1675]
[1744572422391,7.7087,1621.7,1621.4,12.33485]
[1744572422589,7.7087,1621.7,1621.4,6.16735]
[1744572423404,13.8536596,1621.7,1621.2,6.14]
[1744572423610,6.16712,1621.5,1621.2,6.14]
[1744572423783,6.16782,1621.4,1621.2,6.14]
[1744572424101,6.16725,1621.5,1621.2,6.14]
[1744572424866,6.16674,1621.6,1621.2,6.14]
[1744572425066,6.16765,1621.4,1621.2,6.14]
[1744572425703,6.16788,1621.3,1621.2,6.14]
[1744572425875,0.7987,1621.6,1621.2,6.7165]
[1744572426077,6.894,1621.7,1621.4,6.16724]
[1744572426290,13.0605,1621.7,1621.4,6.16724]
[1744572426605,14.44633,1621.7,1621.2,6.7165]
[1744572426790,14.44633,1621.7,1621.3,6.16771]
[1744572426791,19.22697,1621.7,1621.3,6.16771]
[1744572427372,19.22697,1621.7,1621.3,12.33547]
[1744572428003,19.22697,1621.7,1621.3,18.47547]
[1744572428803,13.06041,1621.7,1621.4,6.16748]
[1744572430398,15.062922,1621.7,1621.3,12.30771]
[1744572430600,6.16675,1621.6,1621.3,12.30771]
[1744572430776,13.06041,1621.7,1621.3,18.47547]
[1744572430979,13.06041,1621.7,1621.4,6.16741]
[1744572431615,19.22695,1621.7,1621.4,6.16741]
[1744572431801,19.22702,1621.7,1621.4,6.16741]
[1744572433194,13.06041,1621.7,1621.4,6.16741]
[1744572436090,6.894,1621.7,1621.4,6.16741]
[1744572436289,0.7,1621.6,1621.4,7.398131]
[1744572439533,0.7,1621.6,1621.5,0.19268619]
[1744572442438,0.7,1621.6,1621.5,6.35980619]
[1744572442610,13.13103,1621.8,1621.5,6.35980619]
[1744572442817,13.13103,1621.8,1621.5,6.33268619]
[1744572443200,13.13103,1621.8,1621.5,6.14]
[1744572443648,6.16647,1621.7,1621.5,6.14]
[1744572444112,12.33304,1621.7,1621.5,6.14]
[1744572444679,6.16674,1621.6,1621.5,6.14]
[1744572444856,9.91904,1621.6,1621.5,6.14]
[1744572445227,6.1683,1621.2,1621.0,6.14]
[1744572445615,6.1683,1621.2,1621.1,0.19273351]
[1744572446029,13.08824,1621.3,1621.1,0.19273351]
[1744572446360,6.895,1621.4,1621.2,6.16815]
[1744572446585,6.895,1621.4,1621.2,6.86185835]
[1744572447671,6.895,1621.4,1621.2,6.86184835]
[1744572447965,6.895,1621.4,1621.3,0.19270326]
[1744572450180,6.895,1621.4,1621.2,6.16811]
[1744572451080,6.895,1621.4,1621.1,12.91376]
[1744572451467,6.895,1621.4,1621.1,12.88513]
[1744572451984,13.87937,1621.4,1621.2,0.19271119]
[1744572452138,15.267307,1621.4,1621.2,0.19271119]
[1744572452644,13.87937,1621.4,1621.2,0.19271119]
[1744572452845,6.16793,1621.3,1621.1,6.14]
[1744572453468,6.16827,1621.2,1621.1,6.14]
[1744572453669,3.0,1621.5,1621.3,6.16788]
[1744572453875,14.364554,1621.7,1621.3,0.06167805]
[1744572453876,8.198174,1621.7,1621.3,0.06167805]
[1744572454081,13.86701,1622.0,1621.6,6.16662]
[1744572454241,6.16638,1621.7,1621.4,12.50007467]
[1744572454769,0.8167,1621.7,1621.5,0.19268467]
[1744572454970,6.16606,1621.8,1621.5,6.35979467]
[1744572455291,6.16606,1621.8,1621.5,6.16711]
[1744572455591,0.7,1621.9,1621.7,6.16616]
[1744572456089,0.7,1621.9,1621.8,6.35862523]
[1744572456466,13.07947,1622.2,1621.8,12.52460523]
[1744572456668,3.0,1622.1,1621.8,12.52460523]
[1744572456865,13.07947,1622.2,1621.8,12.52460523]
[1744572457064,6.9147,1622.2,1621.8,13.58442052]
[1744572457263,6.9147,1622.2,1621.7,6.16631]
[1744572457264,0.7502,1622.2,1621.7,6.16631]
[1744572457470,6.1654,1622.0,1621.6,19.04963]
[1744572457953,6.1654,1622.0,1621.7,0.19264393]
[1744572458154,6.16491,1622.1,1621.7,6.35898393]
[1744572458350,12.33,1622.1,1621.7,6.16621]
[1744572458557,12.33,1622.1,1621.7,8.071151]
[1744572458897,6.16491,1622.1,1621.7,14.237391]
[1744572459296,12.33004,1622.1,1621.7,8.071151]
[1744572459592,6.86541,1622.0,1621.7,8.071151]
[1744572459895,6.86541,1622.0,1621.7,1.904941]
[1744572460998,13.03086,1622.0,1621.7,1.904941]
[1744572461197,6.86541,1622.0,1621.7,1.904941]
[1744572462198,13.03084,1622.0,1621.7,1.904941]
[1744572462598,6.16568,1621.9,1621.7,1.904941]
[1744572462889,6.16636,1621.7,1621.6,6.14]
[1744572463293,13.82536,1621.9,1621.6,12.30673]
[1744572463729,19.99118,1621.9,1621.6,12.30673]
[1744572464029,7.6597,1621.9,1621.6,12.3066]
[1744572464206,7.6597,1621.9,1621.6,14.211614]
[1744572464839,6.16613,1621.8,1621.6,6.14]
[1744572465697,6.16636,1621.7,1621.6,6.14]
[1744572466127,12.33295,1621.7,1621.4,6.14]
[1744572466334,6.16679,1621.6,1621.4,6.14]
[1744572467136,6.16636,1621.7,1621.4,6.14]
[1744572467298,6.16636,1621.7,1621.4,12.30747]
[1744572467635,12.3329,1621.7,1621.4,12.30747]
[1744572468232,6.16677,1621.6,1621.4,6.14]
[1744572468838,6.16712,1621.5,1621.4,6.14]
[1744572469043,12.33373,1621.6,1621.4,6.14]
[1744572469403,12.33368,1621.6,1621.4,6.14]
[1744572470135,6.16677,1621.6,1621.4,6.14]
[1744572470342,12.33295,1621.7,1621.4,6.14]
[1744572470917,6.16676,1621.6,1621.4,6.14]
[1744572472643,12.33368,1621.6,1621.4,6.14]
[1744572472814,6.16712,1621.5,1621.4,6.14]
[1744572473224,12.33444,1621.5,1621.2,6.14]
[1744572474116,6.16754,1621.4,1621.2,6.14]
[1744572474322,6.16788,1621.3,1621.2,6.14]
[1744572474504,6.16754,1621.4,1621.2,6.14]
[1744572474727,12.33523,1621.4,1621.2,6.14]
[1744572475264,6.16788,1621.3,1621.2,6.14]
[1744572476969,6.16788,1621.3,1620.9,6.7165]
[1744572477139,6.16882,1621.1,1620.9,6.7165]
[1744572477341,6.16882,1621.1,1620.9,6.14]
[1744572477547,6.16903,1621.0,1620.9,6.14]
[1744572477929,6.95353,1621.0,1620.9,6.14]
[1744572479063,6.9529,1621.2,1620.9,6.14]
[1744572479263,3.0,1621.2,1621.0,6.16902]
[1744572479463,3.0,1621.2,1621.0,12.33804]
[1744572479650,6.95131,1621.6,1621.2,6.74474]
[1744572479861,13.11825,1621.6,1621.3,6.16777]
[1744572480060,13.11825,1621.6,1621.3,12.30777]
[1744572480669,6.61848212,1621.9,1621.3,12.30777]
[1744572480670,6.1659,1621.9,1621.5,6.16701]
[1744572480967,6.16625,1621.8,1621.4,4.90149353]
[1744572481136,6.16625,1621.8,1621.4,11.06896353]
[1744572481479,6.16625,1621.8,1621.5,0.19266829]
[1744572481855,6.16625,1621.8,1621.4,11.06896353]
[1744572482032,6.16625,1621.8,1621.4,17.23627353]
[1744572482764,6.16522,1622.0,1621.7,6.74274]
[1744572483086,13.03917,1622.1,1621.8,6.16597]
[1744572483250,19.20422,1622.1,1621.7,12.88272]
[1744572484200,6.874,1622.1,1621.9,6.16559]
[1744572484899,6.16598,1621.8,1621.7,6.14]
[1744572485053,6.16598,1621.8,1621.3,6.7165]
[1744572485054,6.16728,1621.5,1621.3,6.7165]
[1744572485258,6.1675,1621.4,1621.2,6.14]
[1744572485491,6.16688,1621.6,1621.2,12.30804]
[1744572485798,6.16688,1621.6,1621.3,0.7691961]
[1744572485799,6.16725,1621.5,1621.3,0.7691961]
[1744572486403,6.16725,1621.5,1621.3,0.5765]
[1744572487407,12.33459,1621.5,1621.3,0.5765]
[1744572487575,12.33459,1621.5,1621.2,6.14]
[1744572487957,12.33459,1621.5,1621.2,7.0099339]
[1744572489802,6.16788,1621.3,1621.2,6.14]
[1744572490003,6.1683,1621.2,1621.0,6.14]
[1744572490204,12.33688,1621.2,1621.0,6.14]
[1744572491070,6.1683,1621.2,1621.0,6.14]
[1744572492768,6.16792,1621.3,1621.0,6.14]